bitfinex/quotes_ETHUSD_20241106
["timestamp","ask_amount","ask_price","bid_price","bid_amount"]
[1730879587312,0.7803,2605.2,2604.5,0.01]
[1730879587887,5.0,2606.1,2605.0,0.01]
[1730879588187,0.7803,2606.3,2605.8,0.01]
[1730879588428,0.7803,2607.4,2606.0,0.01]
[1730879588713,0.7803,2607.4,2605.8,0.01]
[1730879588714,0.61803657,2607.3,2605.8,0.01]
[1730879588910,0.61803657,2607.3,2605.6,0.08673841]
[1730879589139,0.61803657,2607.3,2605.4,0.01]
[1730879589140,0.7803,2607.0,2605.4,0.01]
[1730879589341,0.7803,2607.0,2605.8,0.01]
[1730879589499,0.7803,2607.0,2605.6,0.01]
[1730879589700,0.7803,2607.0,2605.8,0.01]
[1730879589936,0.7803,2607.0,2605.3,0.55]
[1730879589937,0.7803,2607.0,2605.7,0.01]
[1730879590114,5.7803,2607.0,2605.7,0.01]
[1730879590312,0.57803,2606.9,2605.4,0.01]
[1730879590511,0.7903,2606.8,2605.0,0.01]
[1730879590715,0.01,2606.6,2604.8,0.7874]
[1730879590937,0.7803,2606.5,2605.0,0.01]
[1730879591249,3.0,2606.4,2604.8,0.7874]
[1730879591415,0.55,2606.2,2604.7,0.01]
[1730879591753,0.7803,2606.1,2605.0,0.01]
[1730879591951,0.7803,2606.1,2604.8,0.62060604]
[1730879592104,0.7803,2606.1,2604.8,0.01]
[1730879592454,0.7803,2606.1,2604.8,0.62060604]
[1730879592601,0.7803,2606.1,2605.0,0.01]
[1730879594303,0.7803,2606.1,2604.7,0.01]
[1730879594548,0.37803,2606.0,2605.0,0.01]
[1730879595255,0.37803,2606.0,2605.4,0.01]
[1730879595403,0.7803,2606.1,2605.2,0.07675853]
[1730879595602,0.7803,2606.1,2605.2,0.01]
[1730879596003,0.7803,2606.1,2604.9,0.01]
[1730879596244,0.7803,2606.1,2604.6,0.01]
[1730879596845,0.7803,2606.1,2604.0,4.99671848]
[1730879596846,0.55,2606.0,2604.2,0.01]
[1730879597015,0.7803,2605.9,2604.5,0.01]
[1730879597536,0.37803,2605.8,2604.8,0.01]
[1730879598118,0.37803,2605.8,2604.6,0.01]
[1730879598654,0.37803,2605.8,2605.0,0.01]
[1730879598941,0.7803,2605.9,2605.2,0.01]
[1730879599638,0.7803,2605.9,2605.4,0.01]
[1730879600047,0.7803,2606.9,2605.6,0.01]
[1730879600251,5.7803,2606.9,2605.4,0.01]
[1730879600407,0.7803,2606.7,2605.0,1.32758937]
[1730879600609,0.7803,2606.7,2605.0,0.01]
[1730879600808,0.7903,2606.7,2604.8,0.01]
[1730879601036,0.7903,2606.7,2604.6,0.01]
[1730879601037,0.7803,2606.6,2604.6,0.01]
[1730879601244,0.7803,2606.2,2604.6,0.01]
[1730879601406,0.55,2606.0,2604.2,0.7874]
[1730879601721,0.7803,2605.7,2604.2,0.01]
[1730879602138,3.7803,2605.7,2604.2,0.01]
[1730879602516,3.7803,2605.7,2604.3,0.01]
[1730879602811,3.7803,2605.7,2603.8,0.7874]
[1730879602812,0.7803,2605.5,2603.8,0.7874]
[1730879603014,0.7803,2605.4,2603.8,0.7874]
[1730879603231,0.7803,2605.2,2603.8,0.7874]
[1730879603424,0.37803,2605.1,2603.8,0.7874]
[1730879603835,0.37803,2605.1,2604.2,0.01]
[1730879604217,0.7803,2605.2,2604.6,0.01]
[1730879604539,0.7803,2605.2,2604.6,0.08677731]
[1730879604851,0.7803,2605.2,2604.6,0.01]
[1730879605034,0.7803,2605.2,2604.8,0.01]
[1730879605210,0.40005695,2605.3,2605.0,0.01]
[1730879605547,0.7803,2605.6,2605.0,0.01]
[1730879605752,0.39999435,2605.5,2605.0,0.01]
[1730879606233,0.39999435,2605.5,2604.2,0.01]
[1730879606435,0.7803,2605.4,2604.2,0.01]
[1730879606749,0.7803,2605.4,2604.4,0.01]
[1730879606955,0.7803,2605.4,2604.8,0.01]
[1730879607459,0.7803,2605.4,2605.0,0.01]
[1730879608123,0.39998522,2605.7,2604.6,0.7774]
[1730879608124,0.39998522,2605.7,2605.5,0.01]
[1730879608638,0.7803,2606.2,2605.8,0.01]
[1730879608830,0.7803,2606.2,2605.6,0.01]
[1730879609151,0.57803,2606.1,2604.7,0.01]
[1730879609456,0.7803,2606.1,2604.3,0.01]
[1730879609652,0.7803,2606.1,2604.7,0.01]
[1730879610014,0.7803,2606.1,2604.1,1.31758937]
[1730879610015,0.55,2606.0,2604.3,0.01]
[1730879610345,0.7912,2605.9,2604.3,0.01]
[1730879610550,0.7912,2605.7,2604.3,0.01]
[1730879610848,0.7912,2605.5,2604.0,0.01]
[1730879611017,0.55,2605.4,2604.0,0.01]
[1730879611213,3.7912,2605.2,2603.8,0.01]
[1730879611526,0.87912,2605.1,2604.2,0.01]
[1730879611736,0.87912,2605.1,2604.0,0.01]
[1730879612281,0.87912,2605.1,2603.8,0.55018937]
[1730879612565,0.87912,2605.1,2603.6,0.01]
[1730879612566,0.55,2605.1,2603.6,0.01]
[1730879612875,0.7912,2605.0,2603.6,0.01]
[1730879613026,0.7912,2605.0,2603.8,0.01]
[1730879614020,0.7912,2605.0,2604.0,0.01]
[1730879614235,0.7912,2605.0,2603.8,0.01]
[1730879614435,0.7912,2605.0,2604.0,0.01]
[1730879615436,0.7912,2605.0,2603.6,0.55018937]
[1730879615629,0.7912,2605.0,2603.4,0.01]
[1730879615932,0.7912,2605.0,2603.6,0.01]
[1730879616162,3.0,2604.9,2603.4,0.01]
[1730879616375,0.7912,2604.5,2603.0,0.01]
[1730879616534,0.7912,2604.5,2603.2,0.01]
[1730879616739,0.7912,2604.5,2603.0,0.01]
[1730879617470,0.7912,2604.4,2603.0,0.01]
[1730879618038,0.7912,2604.4,2602.8,0.01]
[1730879618244,0.7912,2604.1,2602.8,0.01]
[1730879618558,0.7912,2604.1,2602.7,0.61702489]
[1730879618760,0.7912,2603.9,2602.4,0.01]
[1730879618958,0.7912,2603.9,2602.6,0.01]
[1730879619170,0.7912,2603.9,2602.9,0.01]
[1730879619490,0.7912,2603.9,2602.9,0.08683146]
[1730879620185,0.7912,2603.9,2603.2,0.01]
[1730879620347,0.7912,2603.9,2602.8,0.07682933]
[1730879620348,0.7912,2603.9,2603.0,0.01]
[1730879620547,0.7912,2603.9,2602.9,0.01]
[1730879621186,0.7912,2603.9,2602.7,0.01]
[1730879621985,0.7912,2603.9,2602.9,0.01]
[1730879622351,0.7912,2603.9,2603.1,0.01]
[1730879622685,0.7912,2603.9,2602.6,0.55]
[1730879622871,0.7912,2603.9,2602.7,0.70622624]
[1730879623048,0.7912,2604.5,2603.0,4.99671848]
[1730879623246,0.07683034,2604.4,2603.1,1.12036205]
[1730879623488,0.7912,2604.5,2603.5,4.99671848]
[1730879623690,0.7912,2605.0,2603.5,5.49191988]
[1730879623845,0.07683034,2604.9,2603.6,0.62598533]
[1730879624050,0.07683034,2604.9,2603.6,1.04439339]
[1730879624483,0.07683034,2604.9,2603.6,4.04439339]
[1730879624689,0.07683034,2604.9,2603.7,0.55]
[1730879624863,0.07683034,2604.9,2603.6,3.54919199]
[1730879625387,0.07683034,2604.9,2603.7,0.56764234]
[1730879625587,0.07683034,2604.9,2603.7,0.49084281]
[1730879626270,0.07683034,2604.9,2603.8,0.55]
[1730879626575,0.07683034,2604.9,2603.7,0.49084281]
[1730879627714,1.19089507,2605.0,2604.1,3.0]
[1730879627939,0.7912,2605.0,2604.2,0.88225185]
[1730879628782,0.7912,2605.0,2603.8,0.4952014]
[1730879629089,0.7912,2605.0,2603.7,0.49084281]
[1730879629421,0.07683034,2604.9,2603.7,0.49084281]
[1730879629576,0.07683034,2604.9,2603.8,0.57199736]
[1730879629922,0.07683034,2604.9,2604.0,4.99671848]
[1730879630101,0.7912,2605.0,2604.1,1.0716545]
[1730879630291,0.7912,2605.0,2604.1,3.99487325]
[1730879630516,0.7912,2605.0,2604.2,0.55]
[1730879630711,0.7637,2606.1,2604.4,0.55]
[1730879630938,0.07683034,2606.0,2604.4,0.55]
[1730879631244,0.47654036,2606.3,2605.3,0.55]
[1730879631440,0.7637,2606.4,2605.6,4.99671848]
[1730879631604,0.07683034,2606.3,2605.3,1.0452014]
[1730879631803,0.07683034,2606.3,2605.3,2.03197339]
[1730879632003,0.07683034,2606.3,2605.3,5.03197339]
[1730879632350,0.7637,2606.4,2605.4,0.07674502]
[1730879632518,0.7637,2606.4,2605.5,0.55]
[1730879632707,0.7637,2606.4,2605.6,0.07674119]
[1730879633121,0.07683034,2606.8,2605.3,0.98677199]
[1730879633321,0.07683034,2607.5,2606.3,3.8258]
[1730879633624,0.07683034,2607.5,2606.3,4.83976141]
[1730879634157,0.07683034,2607.5,2606.3,2.85722166]
[1730879634724,0.07683034,2607.6,2606.3,2.85722166]
[1730879635254,0.07683034,2607.6,2606.4,0.55]
[1730879635565,0.7637,2607.7,2606.7,4.99671848]
[1730879635767,0.07683034,2607.6,2606.7,4.99671848]
[1730879635925,0.07683034,2607.6,2606.3,2.85722166]
[1730879637062,0.07683034,2607.6,2605.7,4.99671848]
[1730879637246,0.7637,2607.5,2605.9,0.8258]
[1730879637450,0.07683034,2607.4,2605.9,1.75851602]
[1730879637623,0.07683034,2607.4,2605.7,4.99671848]
[1730879637624,0.7637,2607.3,2605.7,4.99671848]
[1730879637825,0.7637,2607.1,2605.2,4.99671848]
[1730879638059,0.7637,2606.9,2605.2,4.99671848]
[1730879638264,3.55,2607.2,2605.2,4.99671848]
[1730879638265,0.84053034,2606.8,2605.2,4.99671848]
[1730879638497,0.84053034,2606.8,2604.7,6.32716016]
[1730879638498,0.55,2606.5,2604.7,6.32716016]
[1730879638659,0.84053034,2606.4,2604.8,0.63271602]
[1730879638864,0.84053034,2606.4,2604.8,1.1373577]
[1730879639062,0.84053034,2606.4,2604.8,0.63271602]
[1730879639381,0.55,2606.3,2604.8,0.50464168]
[1730879639561,0.84053034,2606.2,2604.5,0.50464168]
[1730879639759,0.55,2606.1,2604.5,0.50464168]
[1730879640012,0.7637,2605.9,2604.5,0.50464168]
[1730879640179,0.7637,2605.7,2603.9,0.8258]
[1730879640383,0.84053034,2605.6,2604.0,0.50464168]
[1730879641905,0.7637,2605.4,2603.7,4.99671848]
[1730879642203,0.7535,2605.2,2603.8,0.49967185]
[1730879642376,0.83033034,2605.1,2603.5,0.47230251]
[1730879642598,0.55,2604.8,2603.3,0.39804792]
[1730879642883,0.83033034,2604.7,2602.9,0.47230251]
[1730879643610,0.83033034,2604.7,2602.7,5.81141848]
[1730879643611,0.7535,2604.5,2602.7,5.81141848]
[1730879643816,0.83033034,2604.4,2602.8,0.54912477]
[1730879644100,0.83033034,2604.4,2603.2,4.99671848]
[1730879644265,0.83033034,2604.4,2603.3,0.47230251]
[1730879644468,0.7535,2604.4,2603.2,5.46902099]
[1730879644904,0.7535,2604.4,2603.3,0.54910385]
[1730879645270,0.7535,2604.4,2603.4,0.55]
[1730879645902,0.7535,2604.4,2603.5,0.47903162]
[1730879646302,0.7535,2604.4,2603.5,0.40223025]
[1730879647622,0.7535,2604.4,2603.3,3.47230251]
[1730879647831,0.7535,2604.4,2603.0,0.55]
[1730879647993,0.7535,2604.4,2603.0,1.02230251]
[1730879648333,0.7535,2604.4,2603.2,0.55]
[1730879648491,0.7535,2604.4,2603.2,0.47230251]
[1730879648917,0.399604,2604.3,2603.2,0.47230251]
[1730879649129,0.399604,2604.3,2603.4,0.55]
[1730879649393,0.07683034,2604.2,2603.4,0.60958279]
[1730879649934,0.399604,2604.3,2603.4,0.60958279]
[1730879650589,0.07683034,2604.2,2603.4,0.60958279]
[1730879650791,0.399604,2604.3,2603.4,0.60958279]
[1730879651021,0.399604,2604.3,2603.5,1.3647]
[1730879651203,0.399604,2604.3,2603.5,1.83700251]
[1730879651726,0.7535,2605.1,2604.0,3.0]
[1730879651935,0.7535,2605.1,2604.5,3.0]
[1730879652231,0.7535,2605.5,2604.6,0.37677024]
[1730879652433,0.7535,2605.5,2604.8,3.0]
[1730879652635,0.7535,2605.5,2604.9,0.07676091]
[1730879652793,0.7535,2606.6,2605.0,3.0]
[1730879652989,0.7535,2606.4,2604.8,3.0]
[1730879653239,0.7535,2606.2,2604.2,0.47230251]
[1730879653459,0.07683034,2606.3,2603.5,1.28700251]
[1730879653460,0.7535,2606.0,2603.5,1.28700251]
[1730879653772,0.83033034,2605.9,2603.5,1.28700251]
[1730879654075,0.7535,2605.5,2603.1,0.8147]
[1730879654371,0.7535,2605.1,2603.2,0.47230251]
[1730879654675,0.7535,2604.9,2603.2,0.54910879]
[1730879654839,0.07683034,2604.8,2603.2,0.48230251]
[1730879655542,0.07683034,2604.8,2603.7,0.55]
[1730879655742,0.7535,2604.9,2603.7,0.55]
[1730879655979,0.7535,2604.9,2603.8,0.355]
[1730879656481,0.7535,2604.9,2603.7,0.55]
[1730879657860,0.07683034,2604.8,2603.7,0.55]
[1730879660101,0.7535,2604.7,2603.7,0.55]
[1730879660280,0.7535,2604.5,2603.2,0.55]
[1730879660467,0.7535,2604.3,2602.8,1.28700251]
[1730879661077,0.7535,2604.3,2602.9,0.01]
[1730879661398,0.7535,2604.3,2603.1,0.01]
[1730879661603,0.7535,2604.3,2603.2,0.47230251]
[1730879661760,0.7535,2604.3,2603.7,0.55]
[1730879661959,0.7535,2604.3,2603.2,0.47230251]
[1730879662160,0.7535,2604.3,2602.8,1.28700251]
[1730879662365,0.7535,2604.3,2602.9,0.55]
[1730879662677,0.7535,2604.3,2603.2,3.0]
[1730879662865,0.7535,2604.3,2603.2,0.3]
[1730879663064,0.7535,2604.3,2602.8,1.28700251]
[1730879663266,0.7535,2604.3,2602.8,0.47230251]
[1730879663470,0.7535,2604.3,2603.1,3.0]
[1730879663692,0.7535,2604.3,2602.8,0.47230251]
[1730879663911,0.7535,2604.3,2603.1,3.0]
[1730879664072,6.83818,2605.5,2602.7,0.39838385]
[1730879664073,0.07683034,2604.2,2602.7,0.39838385]
[1730879664267,0.7535,2604.2,2602.7,0.87068636]
[1730879664475,3.01,2604.9,2602.7,0.87068636]
[1730879664476,0.55,2604.0,2602.7,0.39838385]
[1730879664774,0.7535,2603.8,2602.7,0.39838385]
[1730879665076,0.7535,2603.6,2602.1,0.47230251]
[1730879665276,0.7535,2603.4,2601.8,1.21334702]
[1730879665480,0.07683034,2603.3,2601.9,0.75281724]
[1730879665670,0.07683034,2603.3,2601.9,0.67597977]
[1730879666615,0.7535,2603.4,2601.9,0.67597977]
[1730879666778,0.07683034,2603.3,2601.9,0.67597977]
[1730879666983,0.7535,2603.4,2602.0,0.08683748]
[1730879667183,0.7535,2603.8,2602.6,0.01]
[1730879667398,0.7535,2603.8,2602.7,0.9275914]
[1730879667572,0.7535,2604.5,2603.1,0.8147]
[1730879667772,0.7535,2604.5,2603.3,0.55]
[1730879667972,0.7535,2604.5,2603.8,3.0]
[1730879668235,0.7535,2604.5,2604.0,0.55]
[1730879668443,0.7535,2604.5,2603.3,0.55]
[1730879669137,0.07683034,2604.4,2603.3,0.55]
[1730879669438,0.07683034,2604.4,2603.5,0.55]
[1730879669736,0.7535,2604.5,2603.6,3.0]
[1730879669944,0.7535,2604.5,2603.7,0.92679428]
[1730879670240,0.39969831,2604.8,2604.3,0.55]
[1730879670596,0.7535,2605.0,2604.3,3.55]
[1730879670814,0.7535,2605.0,2604.3,0.55]
[1730879671009,0.7535,2605.0,2604.3,3.55]
[1730879671315,0.7535,2605.0,2604.3,0.55]
[1730879671659,0.07683034,2604.9,2604.1,0.55]
[1730879671814,0.7527,2604.8,2603.9,0.55]
[1730879672012,0.7527,2604.8,2604.1,0.55]
[1730879672214,0.39964737,2605.3,2604.3,0.55]
[1730879672414,5.0,2606.2,2605.2,0.55]
[1730879672415,0.7527,2605.7,2605.2,0.55]
[1730879672816,0.39969564,2606.1,2605.0,0.55]
[1730879673016,0.7527,2606.2,2605.3,0.55]
[1730879673263,0.7527,2607.3,2605.8,3.0]
[1730879673418,0.82953034,2607.2,2605.9,0.55]
[1730879674043,0.82953034,2607.2,2605.0,0.51343623]
[1730879674044,0.82953034,2607.2,2605.7,0.55]
[1730879674228,0.82953034,2607.2,2605.4,3.0]
[1730879674558,0.7527,2606.9,2604.5,0.8133]
[1730879674858,0.7527,2606.7,2604.6,0.07676581]
[1730879675029,0.82953034,2606.6,2604.6,0.07676581]
[1730879675228,0.82953034,2606.6,2605.0,0.01]
[1730879675438,0.82953034,2606.6,2605.1,0.51343623]
[1730879675644,0.82953034,2606.6,2605.2,0.07674086]
[1730879675854,0.82953034,2606.6,2604.8,0.56]
[1730879676079,0.82953034,2606.6,2604.8,0.55]
[1730879676577,0.82953034,2606.6,2605.0,0.55]
[1730879676784,0.82953034,2606.6,2605.2,0.55]
[1730879676929,0.82953034,2606.6,2605.4,0.55]
[1730879678143,0.82953034,2606.6,2604.5,0.47067332]
[1730879678144,0.82953034,2606.6,2604.9,3.0]
[1730879678655,0.82953034,2606.6,2604.9,0.3]
[1730879678856,0.82953034,2606.6,2604.4,1.03301078]
[1730879679060,0.82953034,2606.6,2604.9,3.0]
[1730879679247,0.82953034,2606.6,2604.4,1.5036841]
[1730879679559,0.82953034,2606.6,2605.1,0.55]
[1730879680453,0.82953034,2606.6,2604.4,1.03301078]
[1730879680769,0.82953034,2606.6,2604.0,0.8233]
[1730879681074,0.82953034,2606.6,2604.1,0.47067332]
[1730879681279,0.82953034,2606.6,2604.2,0.01]
[1730879681438,0.7527,2606.5,2604.6,0.8133]
[1730879681637,0.82953034,2606.5,2604.7,0.56742327]
[1730879681979,0.7527,2606.5,2605.7,0.55]
[1730879682182,0.7527,2606.5,2605.9,0.55]
[1730879682834,0.7527,2606.5,2606.1,0.55]
[1730879683038,0.7527,2606.5,2605.8,0.55]
[1730879684636,0.7527,2606.5,2606.0,0.55]
[1730879684790,0.7527,2606.5,2606.2,0.55]
[1730879685334,0.7527,2606.5,2606.1,0.55]
[1730879685686,0.7527,2606.5,2606.1,0.905]
[1730879686000,0.7527,2606.5,2606.1,0.55]
[1730879687243,0.7527,2606.5,2605.7,0.55]
[1730879687603,0.7527,2606.5,2605.6,3.0]
[1730879688021,0.7527,2606.5,2605.3,1.28397332]
[1730879688351,0.7527,2606.5,2605.4,0.47067332]
[1730879689007,0.7527,2606.5,2605.5,0.55]
[1730879689209,0.7527,2606.5,2606.1,0.55]
[1730879690249,0.7527,2606.5,2605.6,0.47067332]
[1730879690540,0.7527,2606.5,2604.9,1.02161703]
[1730879690705,0.07683034,2606.4,2604.9,1.27277332]
[1730879691105,0.7752,2606.3,2604.9,1.27277332]
[1730879691731,0.7752,2606.3,2605.0,0.55]
[1730879692443,0.7752,2606.3,2605.0,1.02067332]
[1730879692645,0.7752,2606.3,2605.1,0.47067332]
[1730879692946,0.7752,2606.3,2605.2,3.0]
[1730879693251,0.7752,2606.3,2604.8,0.47067332]
[1730879693431,0.07683034,2606.2,2604.8,0.47067332]
[1730879693627,0.7752,2606.1,2605.1,3.0]
[1730879693829,0.7752,2606.1,2604.2,0.8121]
[1730879694031,0.7752,2606.1,2604.3,0.47067332]
[1730879694220,0.85203034,2606.0,2604.3,0.47067332]
[1730879695774,0.85203034,2606.0,2604.4,0.55]
[1730879695921,0.85203034,2606.0,2604.6,3.0]
[1730879696126,0.85203034,2606.0,2604.2,1.01971452]
[1730879696127,0.85203034,2606.0,2604.7,0.92676452]
[1730879696354,0.85203034,2606.0,2604.7,1.05233999]
[1730879696554,0.7752,2606.0,2605.1,0.55]
[1730879696825,0.7752,2606.0,2605.2,0.07675274]
[1730879697039,0.7752,2606.0,2605.3,0.55]
[1730879697225,0.7752,2606.0,2605.1,0.55]
[1730879697537,0.7752,2606.0,2604.9,0.55]
[1730879698070,0.7752,2606.0,2604.2,3.8021]
[1730879698071,0.7752,2606.0,2604.2,0.8021]
[1730879698368,0.7752,2605.8,2604.7,3.0]
[1730879698568,0.7752,2605.8,2604.2,0.21744939]
[1730879698721,0.7752,2605.8,2604.3,0.8021]
[1730879698920,0.7752,2605.8,2604.3,1.30443999]
[1730879699123,0.8323,2605.6,2604.3,0.69451978]
[1730879699325,0.8323,2605.6,2604.1,0.39872965]
[1730879699563,0.02,2606.1,2603.6,0.50233999]
[1730879699564,0.8323,2605.4,2603.6,0.50233999]
[1730879699771,0.90913034,2605.3,2603.6,0.50233999]
[1730879700365,0.90913034,2605.3,2603.5,0.39885941]
[1730879700525,0.90913034,2605.3,2603.1,1.36553075]
[1730879700727,0.90913034,2605.3,2603.4,0.47014832]
[1730879701069,0.90913034,2605.3,2603.5,0.07679397]
[1730879701271,0.90913034,2605.3,2603.8,0.7655]
[1730879701272,0.8323,2605.3,2603.8,0.7655]
[1730879701763,0.07683034,2605.2,2603.9,0.47014832]
[1730879701965,0.8323,2605.3,2604.2,3.0]
[1730879702185,0.8323,2605.3,2604.4,0.55]
[1730879702397,0.8323,2605.3,2604.4,3.55]
[1730879702686,0.8323,2605.3,2604.6,0.55]
[1730879703049,0.8323,2605.3,2604.4,3.0]
[1730879703480,0.8323,2605.3,2604.5,0.55]
[1730879703862,0.8323,2605.3,2604.6,0.355]
[1730879704385,0.07683034,2605.2,2603.9,0.47014832]
[1730879704592,0.8323,2605.2,2603.5,1.23564832]
[1730879704792,0.8323,2605.0,2603.6,0.47014832]
[1730879704990,0.8323,2604.8,2603.2,0.39891087]
[1730879705162,0.8323,2604.6,2603.2,0.39891087]
[1730879705488,0.8323,2604.4,2602.6,0.7655]
[1730879705699,0.8323,2604.2,2602.3,1.63466212]
[1730879705853,0.8323,2604.0,2602.8,0.2228518]
[1730879706053,0.8323,2604.0,2603.2,0.07681688]
[1730879706280,0.8323,2604.0,2602.5,0.47014832]
[1730879706969,0.90913034,2603.9,2602.5,0.47014832]
[1730879707151,0.90913034,2603.9,2602.7,0.60063651]
[1730879707552,0.90913034,2603.9,2601.9,1.23564832]
[1730879707854,0.90913034,2603.9,2602.3,0.6007277]
[1730879708401,0.8323,2603.6,2602.0,0.39908326]
[1730879708610,0.8323,2603.4,2601.7,0.60081344]
[1730879708887,0.8323,2603.2,2601.7,0.60081344]
[1730879709095,0.90913034,2603.1,2601.7,0.60081344]
[1730879709653,0.90913034,2603.1,2601.1,0.39919026]
[1730879709850,0.90913034,2603.1,2601.3,0.47014832]
[1730879710100,0.01,2603.0,2601.4,0.60087956]
[1730879710252,0.8323,2602.8,2601.1,0.62338852]
[1730879710448,0.90913034,2602.7,2601.1,0.22419826]
[1730879710648,0.90913034,2602.7,2601.1,0.60101012]
[1730879710905,0.8323,2602.5,2600.6,0.39877626]
[1730879711051,0.8323,2602.3,2600.5,0.60108721]
[1730879711404,0.07683034,2602.4,2600.5,0.60108721]
[1730879711405,0.90913034,2602.2,2600.5,0.60108721]
[1730879711689,0.91913034,2602.2,2600.5,0.60108721]
[1730879711891,0.55,2602.1,2600.2,0.47014832]
[1730879712051,0.90913034,2602.0,2600.2,0.47014832]
[1730879712251,0.90913034,2602.0,2600.1,1.00003891]
[1730879712496,0.8323,2601.8,2600.2,0.27791941]
[1730879712666,0.8323,2601.6,2600.2,0.27791941]
[1730879712868,0.90913034,2601.5,2600.1,0.39885026]
[1730879713063,0.90913034,2601.5,2600.0,1.77915519]
[1730879713583,0.90913034,2601.5,2600.1,0.07690749]
[1730879713799,0.8323,2601.5,2600.2,1.23564832]
[1730879714091,0.8323,2601.5,2600.2,0.47014832]
[1730879714305,0.07683034,2601.4,2600.2,0.47014832]
[1730879714486,0.8323,2601.5,2600.3,0.55]
[1730879714656,0.07683034,2601.4,2600.3,0.55]
[1730879714998,0.7997,2602.0,2600.3,0.40201483]
[1730879715294,0.7897,2601.8,2600.1,0.55]
[1730879715498,5.01,2602.2,2600.1,0.55]
[1730879715499,0.7897,2601.6,2600.1,0.55]
[1730879715666,0.7897,2601.4,2600.1,0.55]
[1730879715873,0.07683034,2601.3,2600.1,0.55]
[1730879716077,0.07199034,2601.3,2600.1,0.55]
[1730879716280,0.07077531,2601.3,2600.3,0.55]
[1730879716498,0.7897,2601.2,2600.3,0.55]
[1730879717300,0.7897,2601.2,2600.2,0.23291552]
[1730879718069,0.07077531,2601.1,2600.0,1.77915519]
[1730879718275,0.86047531,2601.1,2600.0,1.77915519]
[1730879719161,0.7897,2601.1,2600.1,0.07690185]
[1730879719361,1.18958663,2601.1,2600.2,0.55]
[1730879719558,0.7897,2601.1,2600.2,0.55]
[1730879719900,0.7897,2601.1,2600.4,0.55]
[1730879720271,0.7897,2601.5,2600.4,0.55]
[1730879720486,0.7897,2601.5,2601.0,3.0]
[1730879720659,0.7897,2601.9,2601.1,0.62687136]
[1730879720865,0.7897,2601.9,2601.4,0.55]
[1730879721091,0.7897,2601.9,2601.5,0.355]
[1730879721466,0.7897,2601.9,2601.4,0.55]
[1730879721874,0.7897,2601.9,2600.7,0.55]
[1730879722058,0.7897,2601.9,2600.9,0.55]
[1730879722265,0.7897,2601.9,2601.1,0.55]
[1730879723105,0.7897,2601.9,2600.6,1.04469206]
[1730879723106,0.7897,2601.9,2600.7,1.02014832]
[1730879723400,0.7897,2601.9,2600.9,0.55]
[1730879723607,0.7897,2601.9,2600.8,0.20648404]
[1730879723790,0.7897,2601.9,2600.7,0.47014832]
[1730879724899,0.7897,2601.9,2600.8,0.55]
[1730879725469,0.7897,2601.9,2601.0,0.55]
[1730879725665,0.7897,2601.9,2601.2,0.55]
[1730879726209,0.7897,2601.9,2601.1,0.55]
[1730879726508,0.7897,2601.9,2601.3,0.55]
[1730879727183,0.7897,2601.9,2601.1,0.55]
[1730879728210,0.7897,2601.9,2601.2,0.07687609]
[1730879729000,0.7897,2601.9,2601.3,0.55]
[1730879729199,0.7897,2601.9,2601.4,0.43955541]
[1730879729506,0.7897,2601.9,2601.3,0.55]
[1730879729670,0.7897,2601.9,2601.1,0.55]
[1730879730108,0.7897,2601.9,2601.0,3.0]
[1730879730318,0.7897,2601.9,2600.9,0.55]
[1730879731084,0.7897,2601.9,2600.8,3.55]
[1730879731395,0.7897,2601.9,2601.0,0.55]
[1730879731608,0.7897,2601.9,2600.9,0.55]
[1730879731990,0.7897,2601.9,2601.0,0.07687723]
[1730879732189,0.7897,2601.9,2601.3,3.0]
[1730879732390,0.7897,2601.9,2601.4,0.55]
[1730879732779,0.7897,2601.9,2601.3,0.55]
[1730879732979,0.7897,2601.9,2601.4,0.355]
[1730879733224,0.7897,2601.9,2601.5,0.6268664]
[1730879733512,0.7897,2601.9,2601.5,0.55]
[1730879733713,0.7897,2601.9,2601.6,3.0]
[1730879734032,0.7832,2603.3,2601.7,1.09700759]
[1730879734178,0.7832,2603.1,2601.7,1.09700759]
[1730879734376,0.7832,2602.9,2601.7,0.55]
[1730879734582,0.39968046,2603.4,2601.7,0.55]
[1730879734583,0.7832,2602.7,2601.7,0.55]
[1730879734806,0.7832,2602.5,2601.6,0.55]
[1730879735207,0.7832,2602.5,2601.4,3.0]
[1730879735409,0.7832,2602.5,2601.2,0.51144869]
[1730879735607,0.01,2603.1,2601.2,0.51144869]
[1730879735608,0.85397531,2602.4,2601.2,3.0]
[1730879736211,0.85397531,2602.4,2600.8,0.51144869]
[1730879736212,0.85397531,2602.4,2600.8,0.73741924]
[1730879737017,0.85397531,2602.4,2600.9,0.55]
[1730879737018,0.7832,2602.4,2600.9,0.55]
[1730879737318,0.7832,2602.4,2601.2,3.0]
[1730879737622,0.7832,2602.4,2601.3,0.86644869]
[1730879737789,0.7832,2602.4,2601.4,0.07686073]
[1730879738114,0.7832,2602.4,2601.4,0.51144869]
[1730879738623,0.7832,2602.4,2601.5,0.07686072]
[1730879738823,0.7832,2602.4,2601.5,0.58830941]
[1730879739126,0.7832,2602.4,2601.6,0.51144869]
[1730879739520,0.7832,2602.4,2601.2,0.8252]
[1730879739745,0.7832,2602.4,2601.3,0.51144869]
[1730879740333,0.07077531,2602.3,2600.5,1.22266545]
[1730879740532,0.7832,2602.3,2601.0,0.51144869]
[1730879740727,0.7832,2602.1,2601.0,0.51144869]
[1730879741162,0.7832,2602.1,2600.5,0.39746545]
[1730879741327,0.55,2601.8,2600.5,0.39746545]